[Event "Klubbmästerskap 2025 Tisdag"]
[Site "Linköping, Sweden"]
[Date "2025.02.04"]
[Round "3.6"]
[White "Andersson, Albin"]
[Black "Larsson, Elin"]
[Result "1/2-1/2"]
[TimeControl "90 min + 30 sec/move"]
[WhiteElo "1614"]
[BlackElo "1666"]

1. e4 {[%clk 01:30:57]} {[%emt 00:00:03]} c5 {[%clk 01:30:51]} {[%emt
00:00:09]} 2. Nf3 {[%clk 01:31:17]} {[%emt 00:00:10]} Nc6 {[%clk 01:29:36]}
{[%emt 00:01:45]} 3. g3 {[%clk 01:30:38]} {[%emt 00:01:09]} d5 {[%clk
01:23:20]} {[%emt 00:06:47]} 4. exd5 {[%clk 01:27:06]} {[%emt 00:04:02]} Qxd5
{[%clk 01:23:26]} {[%emt 00:00:23]} 5. Nc3 {[%clk 01:26:26]} {[%emt 00:01:10]}
Qe6+ {[%clk 01:21:04]} {[%emt 00:02:52]} 6. Ne2 {[%clk 01:22:40]} {[%emt
00:04:16]} Qe4 {[%clk 01:12:21]} {[%emt 00:09:12]} 7. Bg2 {[%clk 01:18:06]}
{[%emt 00:05:04]} Nd4 {[%clk 01:10:53]} {[%emt 00:01:59]} 8. Nfxd4 {[%clk
01:15:37]} {[%emt 00:02:59]} Qxg2 {[%clk 01:09:50]} {[%emt 00:01:32]} 9. Rg1
{[%clk 01:15:47]} {[%emt 00:00:20]} Qxh2 {[%clk 01:08:46]} {[%emt 00:01:34]} 10.
Nf3 {[%clk 01:15:55]} {[%emt 00:00:23]} Qh5 {[%clk 01:08:14]} {[%emt 00:01:01]}
11. Nf4 {[%clk 01:14:12]} {[%emt 00:02:12]} Qf5 {[%clk 01:00:56]} {[%emt
00:07:48]} 12. d3 {[%clk 01:07:27]} {[%emt 00:07:16]} Nf6 {[%clk 00:57:33]}
{[%emt 00:03:53]} 13. Qe2 {[%clk 01:04:20]} {[%emt 00:03:38]} b6 {[%clk
00:52:22]} {[%emt 00:05:41]} 14. Bd2 {[%clk 01:01:06]} {[%emt 00:03:43]} Bb7
{[%clk 00:45:09]} {[%emt 00:07:43]} 15. g4 {[%clk 00:51:36]} {[%emt 00:10:00]}
Qc8 {[%clk 00:32:51]} {[%emt 00:12:48]} 16. g5 {[%clk 00:43:02]} {[%emt
00:09:04]} Nd5 {[%clk 00:30:00]} {[%emt 00:03:21]} 17. O-O-O {[%clk 00:37:11]}
{[%emt 00:06:21]} Nxf4 {[%clk 00:19:44]} {[%emt 00:10:45]} 18. Bxf4 {[%clk
00:37:00]} {[%emt 00:00:41]} g6 {[%clk 00:16:22]} {[%emt 00:03:52]} 19. Rg3
{[%clk 00:24:02]} {[%emt 00:13:29]} Bg7 {[%clk 00:11:22]} {[%emt 00:05:30]} 20.
Re1 {[%clk 00:20:17]} {[%emt 00:04:15]} Qd7 {[%clk 00:06:22]} {[%emt 00:05:29]}
21. Ne5 {[%clk 00:13:26]} {[%emt 00:07:22]} Qd4 {[%clk 00:04:00]} {[%emt
00:02:52]} 22. Rg4 {[%clk 00:10:53]} {[%emt 00:03:03]} e6 {[%clk 00:01:26]}
{[%emt 00:03:04]} 23. Bg3 {[%clk 00:08:54]} {[%emt 00:02:29]} Qd5 {[%clk
00:00:39]} {[%emt 00:01:17]} 24. Kb1 {[%clk 00:05:23]} {[%emt 00:04:01]} O-O
{[%clk 00:00:33]} {[%emt 00:00:35]} 25. Rh4 {[%clk 00:04:57]} {[%emt 00:00:55]}
f6 {[%clk 00:00:32]} {[%emt 00:00:31]} 26. gxf6 {[%clk 00:04:24]} {[%emt
00:01:03]} Bxf6 {[%clk 00:00:40]} {[%emt 00:00:22]} 27. Rh2 {[%clk 00:04:10]}
{[%emt 00:00:45]} Rae8 {[%clk 00:00:36]} {[%emt 00:00:35]} 28. Qg4 {[%clk
00:03:26]} {[%emt 00:01:14]} Bxe5 {[%clk 00:00:35]} {[%emt 00:00:31]} 29. Bxe5
{[%clk 00:03:21]} {[%emt 00:00:36]} Qf3 {[%clk 00:00:37]} {[%emt 00:00:28]} 30.
Qh4 {[%clk 00:02:11]} {[%emt 00:01:40]} Rf7 {[%clk 00:00:35]} {[%emt 00:00:31]}
31. Qa4 {[%clk 00:00:59]} {[%emt 00:01:43]} Ref8 {[%clk 00:00:34]} {[%emt
00:00:31]} 32. Qc4 {[%clk 00:01:00]} {[%emt 00:00:29]} Bd5 {[%clk 00:00:37]}
{[%emt 00:00:26]} 33. Qh4 {[%clk 00:01:16]} {[%emt 00:00:14]} Qf5 {[%clk
00:00:34]} {[%emt 00:00:33]} 34. Bc3 {[%clk 00:01:15]} {[%emt 00:00:31]} Qf4
{[%clk 00:00:40]} {[%emt 00:00:24]} 35. Qh3 {[%clk 00:01:13]} {[%emt 00:00:32]}
Qf3 {[%clk 00:00:45]} {[%emt 00:00:24]} 36. Qh4 {[%clk 00:01:08]} {[%emt
00:00:36]} Qf4 {[%clk 00:00:48]} {[%emt 00:00:28]} 37. Qh3 {[%clk 00:01:25]}
{[%emt 00:00:13]} Qf3 {[%clk 00:00:34]} {[%emt 00:00:44]} 38. Qh4 {[%clk
00:01:36]} {[%emt 00:00:19]} Qf4 {[%clk 00:00:33]} {[%emt 00:00:31]} 1/2-1/2

[Event "Klubbmästerskap 2025 Tisdag"]
[Site "Linköping, Sweden"]
[Date "2025.02.04"]
[Round "3.7"]
[White "Nagy, Mate 2009"]
[Black "Pettersson, Börje"]
[Result "0-1"]
[TimeControl "90 min + 30 sec/move"]
[WhiteElo "1917"]
[BlackElo "1906"]

1. e4 {[%clk 01:30:56]} {[%emt 00:00:04]} c5 {[%clk 01:30:36]} {[%emt
00:00:25]} 2. Nf3 {[%clk 01:31:16]} {[%emt 00:00:10]} Nc6 {[%clk 01:30:27]}
{[%emt 00:00:38]} 3. Bb5 {[%clk 01:31:40]} {[%emt 00:00:06]} g6 {[%clk
01:29:55]} {[%emt 00:01:02]} 4. c3 {[%clk 01:31:12]} {[%emt 00:00:59]} Bg7
{[%clk 01:29:48]} {[%emt 00:00:37]} 5. O-O {[%clk 01:30:55]} {[%emt 00:00:47]}
Nf6 {[%clk 01:28:23]} {[%emt 00:01:54]} 6. Re1 {[%clk 01:30:21]} {[%emt
00:01:04]} O-O {[%clk 01:27:36]} {[%emt 00:01:17]} 7. h3 {[%clk 01:24:34]}
{[%emt 00:06:17]} d6 {[%clk 01:24:01]} {[%emt 00:04:03]} 8. d3 {[%clk
01:23:18]} {[%emt 00:01:48]} Bd7 {[%clk 01:23:08]} {[%emt 00:01:22]} 9. Be3
{[%clk 01:21:21]} {[%emt 00:02:28]} a6 {[%clk 01:18:17]} {[%emt 00:05:20]} 10.
Ba4 {[%clk 01:21:14]} {[%emt 00:00:37]} c4 {[%clk 01:08:57]} {[%emt 00:09:49]}
11. Bc2 {[%clk 01:17:56]} {[%emt 00:03:49]} cxd3 {[%clk 01:04:57]} {[%emt
00:04:30]} 12. Qxd3 {[%clk 01:16:46]} {[%emt 00:01:40]} Rc8 {[%clk 00:58:56]}
{[%emt 00:06:31]} 13. Nbd2 {[%clk 01:11:12]} {[%emt 00:06:04]} Qc7 {[%clk
00:56:26]} {[%emt 00:02:59]} 14. Rac1 {[%clk 01:09:28]} {[%emt 00:02:15]} b5
{[%clk 00:51:16]} {[%emt 00:05:40]} 15. Bb1 {[%clk 01:05:00]} {[%emt 00:04:57]}
Rfd8 {[%clk 00:46:52]} {[%emt 00:04:55]} 16. c4 {[%clk 00:57:54]} {[%emt
00:07:37]} Ne5 {[%clk 00:40:32]} {[%emt 00:06:50]} 17. Nxe5 {[%clk 00:57:17]}
{[%emt 00:01:06]} dxe5 {[%clk 00:40:57]} {[%emt 00:00:05]} 18. Qa3 {[%clk
00:52:44]} {[%emt 00:05:04]} Qd6 {[%clk 00:31:52]} {[%emt 00:09:35]} 19. c5
{[%clk 00:48:23]} {[%emt 00:04:51]} Qc6 {[%clk 00:30:02]} {[%emt 00:02:18]} 20.
Qc3 {[%clk 00:44:34]} {[%emt 00:04:21]} Nh5 {[%clk 00:27:48]} {[%emt 00:02:44]}
21. Nb3 {[%clk 00:42:59]} {[%emt 00:02:06]} Nf4 {[%clk 00:24:42]} {[%emt
00:03:35]} 22. Bxf4 {[%clk 00:40:47]} {[%emt 00:02:42]} exf4 {[%clk 00:25:08]}
{[%emt 00:00:03]} 23. e5 {[%clk 00:40:14]} {[%emt 00:01:03]} Qd5 {[%clk
00:22:42]} {[%emt 00:02:54]} 24. Be4 {[%clk 00:35:19]} {[%emt 00:05:26]} Qc4
{[%clk 00:09:07]} {[%emt 00:14:06]} 25. Qf3 {[%clk 00:34:10]} {[%emt 00:01:37]}
Qa4 {[%clk 00:08:11]} {[%emt 00:01:27]} 26. c6 {[%clk 00:33:57]} {[%emt
00:00:44]} Be6 {[%clk 00:07:23]} {[%emt 00:01:17]} 27. c7 {[%clk 00:32:30]}
{[%emt 00:01:58]} Rd7 {[%clk 00:06:20]} {[%emt 00:01:34]} 28. Bb7 {[%clk
00:29:01]} {[%emt 00:03:58]} Rcxc7 {[%clk 00:06:08]} {[%emt 00:00:43]} 29. Nc5
{[%clk 00:28:43]} {[%emt 00:00:47]} Rxc5 {[%clk 00:04:28]} {[%emt 00:02:10]} 30.
Rxc5 {[%clk 00:28:15]} {[%emt 00:00:58]} Rd2 {[%clk 00:04:46]} {[%emt
00:00:12]} 31. Qc3 {[%clk 00:23:23]} {[%emt 00:05:22]} Qd4 {[%clk 00:02:06]}
{[%emt 00:03:10]} 32. Qxd4 {[%clk 00:23:18]} {[%emt 00:00:34]} Rxd4 {[%clk
00:02:27]} {[%emt 00:00:10]} 33. Bxa6 {[%clk 00:23:08]} {[%emt 00:00:40]} b4
{[%clk 00:01:47]} {[%emt 00:01:10]} 34. b3 {[%clk 00:21:02]} {[%emt 00:02:36]}
Bf5 {[%clk 00:01:21]} {[%emt 00:00:56]} 35. Rc4 {[%clk 00:20:33]} {[%emt
00:00:59]} Rd2 {[%clk 00:01:30]} {[%emt 00:00:21]} 36. Rxb4 {[%clk 00:19:43]}
{[%emt 00:01:20]} Rxa2 {[%clk 00:01:56]} {[%emt 00:00:04]} 37. Rb8+ {[%clk
00:18:49]} {[%emt 00:01:23]} Bf8 {[%clk 00:02:23]} {[%emt 00:00:03]} 38. Bc4
{[%clk 00:18:33]} {[%emt 00:00:45]} e6 {[%clk 00:02:06]} {[%emt 00:00:48]} 39.
Rd1 {[%clk 00:17:41]} {[%emt 00:01:21]} Kg7 {[%clk 00:02:26]} {[%emt 00:00:11]}
40. b4 {[%clk 00:17:55]} {[%emt 00:00:16]} Rb2 {[%clk 00:02:25]} {[%emt
00:00:31]} 41. b5 {[%clk 00:16:57]} {[%emt 00:01:29]} Bc5 {[%clk 00:02:52]}
{[%emt 00:00:03]} 42. Rbd8 {[%clk 00:14:37]} {[%emt 00:02:50]} Bxf2+ {[%clk
00:02:12]} {[%emt 00:01:10]} 43. Kh1 {[%clk 00:14:49]} {[%emt 00:00:18]} Be3
{[%clk 00:02:11]} {[%emt 00:00:31]} 44. Bd3 {[%clk 00:13:39]} {[%emt 00:01:40]}
Bxd3 {[%clk 00:01:52]} {[%emt 00:00:49]} 45. R8xd3 {[%clk 00:13:42]} {[%emt
00:00:27]} Rxb5 {[%clk 00:02:14]} {[%emt 00:00:09]} 46. Rd7 {[%clk 00:12:30]}
{[%emt 00:01:41]} Rxe5 {[%clk 00:02:39]} {[%emt 00:00:05]} 47. Rb7 {[%clk
00:12:30]} {[%emt 00:00:30]} g5 {[%clk 00:02:45]} {[%emt 00:00:25]} 48. Rdd7
{[%clk 00:12:24]} {[%emt 00:00:35]} Rf5 {[%clk 00:03:11]} {[%emt 00:00:04]} 49.
Re7 {[%clk 00:11:29]} {[%emt 00:01:25]} Kg6 {[%clk 00:03:14]} {[%emt 00:00:27]}
50. Red7 {[%clk 00:11:26]} {[%emt 00:00:33]} h5 {[%clk 00:03:31]} {[%emt
00:00:12]} 51. Rb8 {[%clk 00:11:31]} {[%emt 00:00:26]} Rf6 {[%clk 00:02:49]}
{[%emt 00:01:12]} 52. Rg8+ {[%clk 00:11:51]} {[%emt 00:00:10]} Kh7 {[%clk
00:00:50]} {[%emt 00:02:30]} 53. Rxg5 {[%clk 00:11:25]} {[%emt 00:00:55]} f3
{[%clk 00:00:47]} {[%emt 00:00:33]} 54. Rxh5+ {[%clk 00:11:32]} {[%emt
00:00:23]} Kg6 {[%clk 00:01:06]} {[%emt 00:00:07]} 55. Re5 {[%clk 00:11:15]}
{[%emt 00:00:50]} f2 {[%clk 00:01:20]} {[%emt 00:00:16]} 56. Rxe3 {[%clk
00:11:19]} {[%emt 00:00:26]} f1=Q+ {[%clk 00:01:37]} {[%emt 00:00:12]} 57. Kh2
{[%clk 00:11:43]} {[%emt 00:00:07]} Qf4+ {[%clk 00:01:33]} {[%emt 00:00:34]} 58.
Rg3+ {[%clk 00:12:06]} {[%emt 00:00:08]} Kh5 {[%clk 00:01:33]} {[%emt
00:00:30]} 59. Rd8 {[%clk 00:11:49]} {[%emt 00:00:48]} Rh6 {[%clk 00:01:08]}
{[%emt 00:00:54]} 60. Rdg8 {[%clk 00:12:10]} {[%emt 00:00:10]} e5 {[%clk
00:00:56]} {[%emt 00:00:42]} 61. R8g4 {[%clk 00:12:29]} {[%emt 00:00:11]} Qf6
{[%clk 00:00:36]} {[%emt 00:00:50]} 62. h4 {[%clk 00:12:41]} {[%emt 00:00:18]}
Rg6 {[%clk 00:00:43]} {[%emt 00:00:25]} 0-1

[Event "Klubbmästerskap 2025 Tisdag"]
[Site "Linköping, Sweden"]
[Date "2025.02.04"]
[Round "3.8"]
[White "Andersson, Fredrik 1969"]
[Black "Ivarsson, Simon"]
[Result "1/2-1/2"]
[TimeControl "90 min + 30 sec/move"]
[WhiteElo "1746"]
[BlackElo "1771"]

1. d4 {[%clk 01:30:58]} {[%emt 00:00:02]} Nf6 {[%clk 01:30:55]} {[%emt
00:00:05]} 2. Nc3 {[%clk 01:31:25]} {[%emt 00:00:03]} d5 {[%clk 01:31:20]}
{[%emt 00:00:05]} 3. Bf4 {[%clk 01:31:49]} {[%emt 00:00:06]} a6 {[%clk
01:31:23]} {[%emt 00:00:27]} 4. e3 {[%clk 01:31:59]} {[%emt 00:00:20]} e6
{[%clk 01:31:01]} {[%emt 00:00:52]} 5. Nf3 {[%clk 01:25:39]} {[%emt 00:06:50]}
c5 {[%clk 01:29:19]} {[%emt 00:02:12]} 6. dxc5 {[%clk 01:24:07]} {[%emt
00:02:02]} Bxc5 {[%clk 01:29:05]} {[%emt 00:00:44]} 7. Bd3 {[%clk 01:23:41]}
{[%emt 00:00:56]} Nc6 {[%clk 01:27:40]} {[%emt 00:01:54]} 8. O-O {[%clk
01:23:01]} {[%emt 00:01:10]} O-O {[%clk 01:24:48]} {[%emt 00:03:22]} 9. a3
{[%clk 01:08:58]} {[%emt 00:14:33]} Bd6 {[%clk 01:21:47]} {[%emt 00:03:30]} 10.
Bxd6 {[%clk 01:04:04]} {[%emt 00:05:25]} Qxd6 {[%clk 01:20:40]} {[%emt
00:01:37]} 11. e4 {[%clk 01:02:13]} {[%emt 00:02:21]} d4 {[%clk 01:19:05]}
{[%emt 00:02:05]} 12. Ne2 {[%clk 00:54:51]} {[%emt 00:07:51]} e5 {[%clk
01:17:45]} {[%emt 00:01:49]} 13. h3 {[%clk 00:51:41]} {[%emt 00:03:41]} b5
{[%clk 01:16:11]} {[%emt 00:02:03]} 14. c3 {[%clk 00:50:59]} {[%emt 00:01:12]}
Bb7 {[%clk 01:13:59]} {[%emt 00:02:41]} 15. cxd4 {[%clk 00:46:26]} {[%emt
00:05:03]} Nd7 {[%clk 01:09:50]} {[%emt 00:04:39]} 16. d5 {[%clk 00:44:26]}
{[%emt 00:02:30]} Ne7 {[%clk 01:07:00]} {[%emt 00:03:20]} 17. Nd2 {[%clk
00:28:13]} {[%emt 00:16:44]} f5 {[%clk 01:04:14]} {[%emt 00:03:15]} 18. f3
{[%clk 00:27:05]} {[%emt 00:01:38]} Nc5 {[%clk 01:02:16]} {[%emt 00:02:28]} 19.
Bc2 {[%clk 00:27:15]} {[%emt 00:00:20]} Rac8 {[%clk 01:00:49]} {[%emt
00:01:56]} 20. b4 {[%clk 00:26:28]} {[%emt 00:01:18]} fxe4 {[%clk 00:57:56]}
{[%emt 00:03:23]} 21. Nxe4 {[%clk 00:23:54]} {[%emt 00:03:04]} Nxe4 {[%clk
00:57:30]} {[%emt 00:00:56]} 22. fxe4 {[%clk 00:22:44]} {[%emt 00:01:40]} Rxf1+
{[%clk 00:56:34]} {[%emt 00:01:26]} 23. Kxf1 {[%clk 00:23:10]} {[%emt
00:00:02]} Qb6 {[%clk 00:56:30]} {[%emt 00:00:35]} 24. Ng1 {[%clk 00:21:02]}
{[%emt 00:02:38]} Ng6 {[%clk 00:53:41]} {[%emt 00:03:19]} 25. Bb3 {[%clk
00:16:16]} {[%emt 00:05:17]} Qd6 {[%clk 00:51:37]} {[%emt 00:02:34]} 26. Qg4
{[%clk 00:15:18]} {[%emt 00:01:28]} Rf8+ {[%clk 00:50:33]} {[%emt 00:01:33]} 27.
Nf3 {[%clk 00:14:52]} {[%emt 00:00:56]} Bc8 {[%clk 00:49:40]} {[%emt 00:01:23]}
28. Qg3 {[%clk 00:15:14]} {[%emt 00:00:09]} Nf4 {[%clk 00:45:31]} {[%emt
00:04:38]} 29. Rc1 {[%clk 00:14:25]} {[%emt 00:01:19]} 1/2-1/2

[Event "Klubbmästerskap 2025 Tisdag"]
[Site "Linköping, Sweden"]
[Date "2025.02.04"]
[Round "3.9"]
[White "Gustavsson, Rolf"]
[Black "Martinelle, Christoffer"]
[Result "0-1"]
[TimeControl "90 min + 30 sec/move"]
[WhiteElo "1695"]
[BlackElo "1765"]

1. d4 {[%clk 01:30:58]} e6 {[%emt 00:01:37]} 2. Bf4 {[%clk 01:30:03]} {[%emt
00:00:02]} d5 {[%clk 01:30:39]} {[%emt 00:00:38]} 3. e3 {[%clk 01:30:08]}
{[%emt 00:00:25]} c5 {[%clk 01:30:42]} {[%emt 00:00:27]} 4. c3 {[%clk
01:29:36]} {[%emt 00:01:02]} Nc6 {[%clk 01:30:15]} {[%emt 00:00:58]} 5. Nf3
{[%clk 01:28:33]} {[%emt 00:01:32]} Qb6 {[%clk 01:29:48]} {[%emt 00:00:57]} 6.
Qc2 {[%clk 01:24:50]} {[%emt 00:04:13]} Nf6 {[%clk 01:29:09]} {[%emt 00:01:10]}
7. Nbd2 {[%clk 01:22:23]} {[%emt 00:02:56]} Be7 {[%clk 01:28:02]} {[%emt
00:01:38]} 8. h3 {[%clk 01:22:13]} {[%emt 00:00:39]} O-O {[%clk 01:27:37]}
{[%emt 00:00:55]} 9. Be2 {[%clk 01:21:41]} {[%emt 00:01:02]} Bd7 {[%clk
01:25:48]} {[%emt 00:02:19]} 10. O-O {[%clk 01:20:29]} {[%emt 00:01:41]} Rfc8
{[%clk 01:22:51]} {[%emt 00:03:28]} 11. Nb3 {[%clk 01:18:00]} {[%emt 00:03:00]}
c4 {[%clk 01:21:31]} {[%emt 00:01:50]} 12. Nbd2 {[%clk 01:16:35]} {[%emt
00:01:54]} Qd8 {[%clk 01:16:15]} {[%emt 00:05:46]} 13. Ne5 {[%clk 01:11:09]}
{[%emt 00:05:56]} a5 {[%clk 01:13:23]} {[%emt 00:03:22]} 14. Nxd7 {[%clk
01:08:46]} {[%emt 00:02:53]} Qxd7 {[%clk 01:12:23]} {[%emt 00:01:30]} 15. e4
{[%clk 01:05:57]} {[%emt 00:03:19]} b5 {[%clk 01:10:39]} {[%emt 00:02:14]} 16.
e5 {[%clk 01:05:07]} {[%emt 00:01:19]} Ne8 {[%clk 01:10:58]} {[%emt 00:00:12]}
17. a3 {[%clk 01:01:11]} {[%emt 00:04:26]} b4 {[%clk 01:05:09]} {[%emt
00:06:19]} 18. axb4 {[%clk 00:52:21]} {[%emt 00:09:19]} axb4 {[%clk 01:05:21]}
{[%emt 00:00:19]} 19. Nf3 {[%clk 00:50:25]} {[%emt 00:02:26]} b3 {[%clk
01:03:35]} {[%emt 00:02:16]} 20. Qb1 {[%clk 00:49:36]} {[%emt 00:01:13]} Qb7
{[%clk 01:00:09]} {[%emt 00:04:02]} 21. Bg5 {[%clk 00:40:14]} {[%emt 00:09:51]}
Rxa1 {[%clk 00:52:55]} {[%emt 00:07:45]} 22. Qxa1 {[%clk 00:40:22]} {[%emt
00:00:19]} Ra8 {[%clk 00:53:09]} {[%emt 00:00:19]} 23. Qxa8 {[%clk 00:39:11]}
{[%emt 00:01:41]} Qxa8 {[%clk 00:53:22]} {[%emt 00:00:16]} 24. Bxe7 {[%clk
00:37:32]} {[%emt 00:02:09]} Nxe7 {[%clk 00:53:45]} {[%emt 00:00:07]} 25. Rb1
{[%clk 00:36:15]} {[%emt 00:01:40]} Qa2 {[%clk 00:52:15]} {[%emt 00:02:07]} 26.
Nd2 {[%clk 00:36:27]} {[%emt 00:00:18]} Nc8 {[%clk 00:51:36]} {[%emt 00:01:09]}
27. Bd1 {[%clk 00:18:55]} {[%emt 00:18:02]} Nb6 {[%clk 00:50:43]} {[%emt
00:01:23]} 28. Kf1 {[%clk 00:11:47]} {[%emt 00:07:28]} Na4 {[%clk 00:50:14]}
{[%emt 00:01:09]} 29. Ke2 {[%clk 00:04:38]} {[%emt 00:07:38]} Nxb2 {[%clk
00:48:07]} {[%emt 00:02:37]} 30. Bxb3 {[%clk 00:03:46]} {[%emt 00:01:21]} cxb3
{[%clk 00:48:02]} {[%emt 00:00:36]} 31. Rc1 {[%clk 00:02:01]} {[%emt 00:02:16]}
Nc4 {[%clk 00:48:04]} {[%emt 00:00:27]} 32. Rd1 {[%clk 00:01:51]} {[%emt
00:00:40]} Nxd2 {[%clk 00:47:29]} {[%emt 00:01:06]} 33. Rxd2 {[%clk 00:02:04]}
{[%emt 00:00:17]} b2 {[%clk 00:47:46]} {[%emt 00:00:13]} 0-1

[Event "Klubbmästerskap 2025 Tisdag"]
[Site "Linköping, Sweden"]
[Date "2025.02.04"]
[Round "3.10"]
[White "Larsson, Emma 2008"]
[Black "Tonkin, Archie"]
[Result "1-0"]
[TimeControl "90 min + 30 sec/move"]
[WhiteElo "1754"]
[BlackElo "1657"]

1. e4 {[%clk 01:30:57]} {[%emt 00:00:03]} c6 {[%clk 01:30:52]} {[%emt
00:00:08]} 2. d4 {[%clk 01:31:15]} {[%emt 00:00:12]} d5 {[%clk 01:30:58]}
{[%emt 00:00:22]} 3. e5 {[%clk 01:31:39]} {[%emt 00:00:07]} e6 {[%clk
01:30:49]} {[%emt 00:00:38]} 4. f4 {[%clk 01:31:20]} {[%emt 00:00:50]} Ne7
{[%clk 01:30:11]} {[%emt 00:01:07]} 5. Nf3 {[%clk 01:30:29]} {[%emt 00:01:23]}
h6 {[%clk 01:29:38]} {[%emt 00:01:02]} 6. Bd3 {[%clk 01:29:26]} {[%emt
00:01:33]} g6 {[%clk 01:29:21]} {[%emt 00:00:47]} 7. b3 {[%clk 01:25:47]}
{[%emt 00:04:09]} Nf5 {[%clk 01:28:37]} {[%emt 00:01:13]} 8. c3 {[%clk
01:24:19]} {[%emt 00:01:59]} Nd7 {[%clk 01:27:53]} {[%emt 00:01:12]} 9. O-O
{[%clk 01:23:11]} {[%emt 00:01:39]} Be7 {[%clk 01:26:44]} {[%emt 00:01:38]} 10.
Qe1 {[%clk 01:20:16]} {[%emt 00:03:26]} a6 {[%clk 01:25:59]} {[%emt 00:01:15]}
11. Ba3 {[%clk 01:15:40]} {[%emt 00:05:07]} Nf8 {[%clk 01:25:31]} {[%emt
00:00:57]} 12. Bxe7 {[%clk 01:13:53]} {[%emt 00:02:18]} Qxe7 {[%clk 01:25:37]}
{[%emt 00:00:24]} 13. Nbd2 {[%clk 01:12:25]} {[%emt 00:01:57]} Bd7 {[%clk
01:23:50]} {[%emt 00:02:18]} 14. c4 {[%clk 01:10:15]} {[%emt 00:02:41]} Nh7
{[%clk 01:23:36]} {[%emt 00:00:44]} 15. Kh1 {[%clk 01:05:24]} {[%emt 00:05:21]}
h5 {[%clk 01:23:17]} {[%emt 00:00:49]} 16. Bxf5 {[%clk 01:02:36]} {[%emt
00:03:18]} exf5 {[%clk 01:23:17]} {[%emt 00:00:30]} 17. cxd5 {[%clk 01:01:14]}
{[%emt 00:01:52]} cxd5 {[%clk 01:22:59]} {[%emt 00:00:46]} 18. Rc1 {[%clk
00:55:56]} {[%emt 00:05:48]} Rc8 {[%clk 01:19:36]} {[%emt 00:03:54]} 19. Rxc8+
{[%clk 00:54:51]} {[%emt 00:01:36]} Bxc8 {[%clk 01:19:53]} {[%emt 00:00:12]} 20.
Nb1 {[%clk 00:51:28]} {[%emt 00:03:53]} O-O {[%clk 01:19:37]} {[%emt 00:00:46]}
21. Qa5 {[%clk 00:48:37]} {[%emt 00:03:22]} Be6 {[%clk 01:19:24]} {[%emt
00:00:42]} 22. Nc3 {[%clk 00:45:23]} {[%emt 00:03:44]} Qd7 {[%clk 01:15:48]}
{[%emt 00:04:06]} 23. Na4 {[%clk 00:44:32]} {[%emt 00:01:22]} Qc6 {[%clk
01:13:56]} {[%emt 00:02:21]} 24. Qd2 {[%clk 00:38:56]} {[%emt 00:06:39]} Rc8
{[%clk 01:13:00]} {[%emt 00:01:53]} 25. Nc5 {[%clk 00:38:26]} {[%emt 00:01:00]}
b6 {[%clk 01:10:25]} {[%emt 00:03:06]} 26. Na4 {[%clk 00:33:30]} {[%emt
00:05:25]} Qb5 {[%clk 01:08:32]} {[%emt 00:02:23]} 27. Rc1 {[%clk 00:27:05]}
{[%emt 00:07:26]} Rxc1+ {[%clk 01:02:41]} {[%emt 00:06:50]} 28. Qxc1 {[%clk
00:27:30]} {[%emt 00:00:05]} Kg7 {[%clk 01:00:40]} {[%emt 00:02:30]} 29. h3
{[%clk 00:25:56]} {[%emt 00:02:04]} Nf8 {[%clk 00:59:15]} {[%emt 00:01:56]} 30.
Kg1 {[%clk 00:23:52]} {[%emt 00:02:34]} Nd7 {[%clk 00:57:39]} {[%emt 00:02:06]}
31. Qd1 {[%clk 00:20:57]} {[%emt 00:03:23]} Qc6 {[%clk 00:56:22]} {[%emt
00:01:49]} 32. Qd2 {[%clk 00:19:47]} {[%emt 00:01:40]} b5 {[%clk 00:55:39]}
{[%emt 00:01:12]} 33. Nc3 {[%emt 00:02:54]} b4 {[%clk 00:54:37]} {[%emt
00:00:02]} 34. Na4 {[%clk 00:16:27]} {[%emt 00:02:56]} a5 {[%clk 00:54:51]}
{[%emt 00:00:16]} 35. Ne1 {[%clk 00:16:17]} {[%emt 00:00:40]} Nb6 {[%clk
00:53:32]} {[%emt 00:01:50]} 36. Nc5 {[%clk 00:15:17]} {[%emt 00:01:29]} Nd7
{[%clk 00:52:09]} {[%emt 00:01:55]} 37. Ned3 {[%clk 00:13:49]} {[%emt
00:01:57]} Nxc5 {[%clk 00:50:47]} {[%emt 00:01:52]} 38. Nxc5 {[%clk 00:14:04]}
{[%emt 00:00:15]} Qb5 {[%clk 00:49:58]} {[%emt 00:01:17]} 39. Kf2 {[%clk
00:13:48]} {[%emt 00:00:48]} Bd7 {[%clk 00:46:36]} {[%emt 00:03:51]} 40. Qe3
{[%clk 00:12:27]} {[%emt 00:01:51]} Be6 {[%clk 00:46:15]} {[%emt 00:00:51]} 41.
Qg3 {[%emt 00:01:00]} Qe8 {[%clk 00:42:51]} {[%emt 00:03:12]} 42. Qd3 {[%clk
00:11:54]} {[%emt 00:01:15]} Qc6 {[%clk 00:41:47]} {[%emt 00:01:33]} 43. Qg3
{[%clk 00:11:34]} {[%emt 00:00:50]} Bc8 {[%clk 00:40:18]} {[%emt 00:01:59]} 44.
Qd3 {[%clk 00:10:38]} {[%emt 00:01:26]} Qb6 {[%clk 00:38:44]} {[%emt 00:02:04]}
45. Qe2 {[%clk 00:09:38]} {[%emt 00:01:28]} Be6 {[%clk 00:38:23]} {[%emt
00:00:53]} 46. Qa6 {[%clk 00:09:17]} {[%emt 00:00:51]} Qxa6 {[%clk 00:36:49]}
{[%emt 00:02:04]} 47. Nxa6 {[%clk 00:09:45]} {[%emt 00:00:02]} f6 {[%clk
00:35:12]} {[%emt 00:02:07]} 48. Nc5 {[%clk 00:06:28]} {[%emt 00:03:47]} Bc8
{[%clk 00:34:34]} {[%emt 00:01:07]} 49. Ke3 {[%clk 00:05:59]} {[%emt 00:00:59]}
fxe5 {[%clk 00:34:49]} {[%emt 00:00:15]} 50. dxe5 {[%clk 00:06:14]} {[%emt
00:00:15]} Kf7 {[%clk 00:34:16]} {[%emt 00:01:03]} 51. Kd4 {[%clk 00:06:32]}
{[%emt 00:00:12]} Be6 {[%clk 00:33:39]} {[%emt 00:01:07]} 52. Nxe6 {[%clk
00:04:13]} {[%emt 00:02:50]} Kxe6 {[%clk 00:34:05]} {[%emt 00:00:04]} 53. g3
{[%clk 00:04:34]} {[%emt 00:00:10]} h4 {[%clk 00:32:42]} {[%emt 00:01:53]} 54.
gxh4 {[%clk 00:04:37]} {[%emt 00:00:27]} 1-0